fUSD/lending_fUSD_20250329
["ID","MTS","AMOUNT","RATE_DAILY","PERIOD"]
[356805657,1743232920583,15410.97,0.00014442,2]
[356805658,1743232953147,769.3,0.00012558,2]
[356805659,1743232953610,252.51,0.00014476,2]
[356805661,1743232966924,250.0,0.00014464,2]
[356805662,1743232974310,200.0,0.00014469,2]
[356805663,1743233021037,1217.0,0.000147,2]
[356805664,1743233031669,150.0,0.00014798,2]
[356805665,1743233031819,150.0,0.00014779,2]
[356805666,1743233031854,150.0,0.00014751,2]
[356805667,1743233031895,150.0,0.00014763,2]
[356805668,1743233032091,150.0,0.00014783,2]
[356805669,1743233051251,1078.0,0.000147,2]
[356805670,1743233053437,210.88,0.00014118,2]
[356805671,1743233091421,150.0,0.00014775,2]
[356805672,1743233091467,150.0,0.0001478,2]
[356805673,1743233091668,150.0,0.00014789,2]
[356805674,1743233126097,1000.0,0.000147,2]
[356805675,1743233127770,2021.83789031,0.00011,2]
[356805677,1743233166992,3592.71992501,8e-05,2]
[356805678,1743233245578,154.49,0.00014137,2]
[356805679,1743233246105,1300.0,0.000147,2]
[356805680,1743233274210,1254.23156438,0.00013,15]
[356805681,1743233291056,1000.0,0.000147,2]
[356805706,1743233351068,1000.0,0.000147,2]
[356805720,1743233431839,-150.0,0.000148,2]
[356805721,1743233431849,-150.0,0.00014806,2]
[356805722,1743233431858,-150.0,0.00014807,2]
[356805723,1743233431868,-674.48384387,0.00014822,2]
[356805724,1743233431883,-94.81615613,0.00014822,2]
[356805725,1743233431892,-150.0,0.00014831,2]
[356805726,1743233431902,-152.53458628,0.00014861,2]
[356805727,1743233431912,-150.0,0.00014883,2]
[356805728,1743233431921,-343.66472369,0.000149,2]
[356805729,1743233431931,-2011.13149023,0.000149,2]
[356805730,1743233431940,-172.85733223,0.00014902,2]
[356805731,1743233431950,-150.0,0.00014913,2]
[356805732,1743233431959,-150.0,0.00014913,2]
[356805733,1743233431969,-150.0,0.00014914,2]
[356805734,1743233431978,-331.26,0.00014914,2]
[356805735,1743233431988,-999.99,0.00014914,2]
[356805736,1743233431997,-644.38,0.00014914,2]
[356805737,1743233432007,-499.99,0.00014914,2]
[356805738,1743233432016,-299.99,0.00014914,2]
[356805739,1743233432025,-17786.64059926,0.00014914,2]
[356805740,1743233432037,-5384.90124809,0.00014914,2]
[356805742,1743233432089,-415.32026094,0.00014914,2]
[356805764,1743233437536,-347.64789171,0.00014914,2]
[356805765,1743233437546,-150.99,0.00014914,2]
[356805766,1743233437555,-2289.46646725,0.00014914,2]
[356805771,1743233437603,-1005.46353275,0.00014914,2]
[356805774,1743233437614,-9999.99,0.00014914,2]
[356805776,1743233437624,-7100.74,0.00014914,2]
[356805778,1743233437633,-191.84717264,0.00014938,2]
[356805780,1743233437643,-500.0,0.00014959,2]
[356805782,1743233437652,-150.0,0.00014967,2]
[356805784,1743233437662,-500.0,0.00014973,2]
[356805786,1743233437672,-162.81,0.00014981,2]
[356805788,1743233437682,-333.82413229,0.00014999,2]
[356805790,1743233437691,-153.48881625,0.00014999,2]
[356805792,1743233437701,-523.0,0.00015,2]
[356805794,1743233437710,-32696.56386656,0.00015,2]
[356805796,1743233437725,-167783.05269143,0.00015,2]
[356805799,1743233437737,-145595.26189623,0.00015,2]
[356805803,1743233437773,-18507.24173644,0.00015,2]
[356805806,1743233437785,-904.0008151,0.00015,2]
[356805814,1743233439926,-446.48610923,0.00015,2]
[356805815,1743233439939,-4172.25,0.00015,2]
[356805816,1743233439964,-1260.3,0.00015,2]
[356805817,1743233440099,-10043.66773096,0.00015,2]
[356805818,1743233440112,-1032.75,0.00015,2]
[356805819,1743233440123,-37411.36638528,0.00015,2]
[356805820,1743233440138,-9526.47575124,0.00015,2]
[356805822,1743233440347,-1589.85620433,0.00015,2]
[356805825,1743233440359,-1273.216,0.00015,2]
[356805827,1743233440384,-48829.95128418,0.00015,2]
[356805828,1743233440399,-121311.68745965,0.00015,2]
[356805843,1743233446543,-23540.52409496,0.00015,2]
[356805844,1743233446700,-839.12,0.00015,2]
[356805845,1743233446740,-1274.1,0.00015,2]
[356805846,1743233469630,-153.95816816,0.000149,2]
[356805847,1743233497583,158.8258908,0.0001455,2]
[356805848,1743233527816,-168.48,0.000149,2]
[356805849,1743233542639,158.8258909,0.0001455,2]
[356805850,1743233628683,175.2,0.00012214,2]
[356805851,1743233632636,158.8258909,0.0001455,2]
[356805852,1743233828787,429.048,0.000147,2]
[356805853,1743233946814,300.0,0.000147,5]
[356805854,1743234001979,-150.0,0.000148,5]
[356805855,1743234061964,-154.000581,0.000148,5]
[356805856,1743234122503,-167.73673983,0.000148,5]
[356805857,1743234172248,-150.0,0.000148,5]
[356805858,1743234231311,150.0,0.00014783,2]
[356805859,1743234261467,776.6,0.0001327,2]
[356805860,1743234291273,150.0,0.0001459,2]
[356805861,1743234362221,-150.0,0.00014851,2]
[356805862,1743234362250,-52.43854032,0.00014882,2]
[356805866,1743234428812,343.239,0.000147,2]
[356805869,1743234449387,300.0,0.000147,5]
[356805870,1743234542665,-152.91151117,0.000148,5]
[356805871,1743234546432,-447.08848883,0.000148,5]
[356805872,1743234546500,-97.56145968,0.00014882,2]
[356805873,1743234546566,-300.0,0.00014899,2]
[356805874,1743234546628,-172.85733223,0.000149,2]
[356805875,1743234546693,-1872.19207329,0.000149,2]
[356805876,1743234546759,-900.0,0.000149,5]
[356805877,1743234546825,-3008.45434245,0.000149,2]
[356805878,1743234548104,-438.2376798,0.000149,2]
[356805879,1743234585581,2612.0,0.000103,5]
[356805892,1743234631836,-695.04622586,0.000149,2]
[356805894,1743234631847,-509.71349748,0.00014973,2]
[356805896,1743234631857,-500.0,0.00014973,2]
[356805898,1743234631866,-1352.07,0.0001499,2]
[356805900,1743234631876,-295.37729053,0.0001499,2]
[356805902,1743234631888,-1056.69270947,0.0001499,2]
[356805904,1743234631898,-733.96266263,0.00014999,5]
[356805907,1743234631915,-425.51236108,0.00014999,5]
[356805909,1743234631925,-568.0,0.00015,2]
[356805911,1743234631934,-13577.05765889,0.00015,2]
[356805912,1743234631947,-2016.81087589,0.00015,2]
[356805913,1743234631960,-3167.8108349,0.00015,2]
[356805914,1743234631971,-973.725,0.00015,2]
[356805915,1743234631983,-8536.46256784,0.00015,2]
[356805916,1743234631995,-542.92,0.00015,2]
[356805917,1743234632006,-316.52362598,0.00015,2]
[356805918,1743234632017,-330.55581015,0.00015,2]
[356805919,1743234632157,-773.37984762,0.00015,2]
[356805920,1743234632169,-1931.45471134,0.00015,2]
[356805921,1743234632182,-423.51186156,0.00015,2]
[356805927,1743234637831,-251.99999996,0.00015,2]
[356805928,1743234637918,-5654.03419554,0.00015,2]
[356805929,1743234638000,-4371.0,0.00015,2]
[356805930,1743234638011,-281.72857653,0.00015,2]
[356805931,1743234638188,-3652.8694975,0.00015,2]
[356805974,1743234646203,-255.9199958,0.00015,2]
[356805977,1743234648444,-150.7605136,0.00015,2]
[356805978,1743234649363,5553.0,0.000103,5]
[356805979,1743234649632,4661.0,0.000102,3]
[356805980,1743234682576,157.0540931,0.0001455,2]
[356805985,1743234727622,157.0540932,0.0001455,2]
[356805989,1743234806512,-106.3194906,0.00015,2]
[356805990,1743234806540,-85968.6805094,0.00015,2]
[356805991,1743234810528,-152.35,0.000149,2]
[356805992,1743235028772,274.591,0.000147,2]
[356805994,1743235234099,-145046.81855117,0.00032699,30]
[356805995,1743235234125,-165.0,0.00032699,120]
[356805996,1743235234151,-269.6033505,0.00032699,30]
[356805997,1743235234177,-716.76215933,0.00032699,120]
[356805998,1743235234203,-1064.6492151,0.00032699,120]
[356806111,1743235274102,737.77,0.00013074,2]
[356806304,1743235393336,23900.0,0.00014799,2]
[356806479,1743235446040,-151.94441106,0.000148,2]
[356806480,1743235446065,-0.96710011,0.000148,2]
[356806483,1743235464049,3835.01795642,0.000147,2]
[356806555,1743235569162,-1720.27287111,0.000149,2]
[356806556,1743235569185,-172.85733223,0.00014916,2]
[356806557,1743235569208,-234.58,0.00014957,2]
[356806558,1743235569231,-500.0,0.00014973,2]
[356806559,1743235569253,-224.25,0.00014986,2]
[356806560,1743235569278,-531.0,0.00015,2]
[356806561,1743235569305,-11617.03979666,0.00015,2]
[356806570,1743235628772,219.673,0.000147,2]
[356806578,1743235650438,-151.94,0.00024712,30]
[356806579,1743235650507,-204.0,0.0003036,30]
[356806580,1743235650573,-204.0,0.0003154,30]
[356806581,1743235650638,-3472.41343363,0.0003221,30]
[356806582,1743235650701,-173.3870184,0.00032219,30]
[356806583,1743235650767,-173.3870184,0.00032329,30]
[356806584,1743235650827,-173.3870184,0.00032466,30]
[356806585,1743235650892,-173.3870184,0.00032603,30]
[356806586,1743235650955,-250.0979,0.0003272,30]
[356806587,1743235651020,-204.0,0.0003273,30]
[356806588,1743235651083,-173.3870184,0.0003274,30]
[356806589,1743235651148,-173.3870184,0.00032849,30]
[356806590,1743235651209,-173.3870184,0.00032986,30]
[356806591,1743235651277,-173.3870184,0.00033123,30]
[356806592,1743235651340,-173.3870184,0.00033233,30]
[356806593,1743235651407,-173.3870184,0.0003337,30]
[356806594,1743235651474,-152.51,0.000335,31]
[356806595,1743235651542,-152.51,0.000335,31]
[356806596,1743235651612,-152.51,0.000335,31]
[356806597,1743235651684,-152.51,0.000335,31]
[356806598,1743235651753,-152.51,0.000335,31]
[356806599,1743235651828,-152.51,0.000335,31]
[356806600,1743235651898,-152.51,0.000335,31]
[356806601,1743235651974,-152.51,0.000335,31]
[356806602,1743235652046,-152.51,0.000335,31]
[356806603,1743235652122,-152.51,0.000335,31]
[356806604,1743235652197,-152.51,0.000335,31]
[356806605,1743235652267,-173.3870184,0.00033507,30]
[356806606,1743235652336,-173.3870184,0.00033644,30]
[356806607,1743235652405,-204.0,0.0003391,30]
[356806608,1743235652468,-723.90478309,0.00035,40]
[356806609,1743235652536,-204.0,0.0003509,30]
[356806610,1743235652600,-1000.0,0.00036068,60]
[356806611,1743235652668,-204.0,0.0003627,30]
[356806612,1743235652733,-1000.0,0.00036616,60]
[356806613,1743235652802,-2500.0,0.000367,120]
[356806614,1743235652874,-152.51,0.000369,31]
[356806615,1743235652952,-152.51,0.000369,31]
[356806616,1743235653025,-152.51,0.000369,31]
[356806617,1743235653104,-152.51,0.000369,31]
[356806618,1743235653181,-152.51,0.000369,31]
[356806619,1743235653256,-152.51,0.000369,31]
[356806620,1743235653329,-152.51,0.000369,31]
[356806621,1743235653406,-152.51,0.000369,31]
[356806622,1743235653481,-152.51,0.000369,31]
[356806623,1743235653552,-152.51,0.000369,31]
[356806624,1743235653623,-152.51,0.000369,31]
[356806625,1743235653694,-152.51,0.000369,31]
[356806626,1743235653766,-152.51,0.000369,31]
[356806627,1743235653836,-152.51,0.000369,31]
[356806628,1743235653908,-152.51,0.000369,31]
[356806629,1743235653978,-152.51,0.000369,31]
[356806630,1743235654049,-152.51,0.000369,31]
[356806631,1743235654122,-152.51,0.000369,31]
[356806632,1743235654196,-152.51,0.000369,31]
[356806633,1743235654270,-152.51,0.000369,31]
[356806634,1743235654343,-152.51,0.000369,31]
[356806635,1743235654417,-152.51,0.000369,31]
[356806636,1743235654483,-1000.0,0.00037164,60]
[356806637,1743235654553,-500.0,0.00037164,60]
[356806638,1743235654617,-500.0,0.00037164,60]
[356806639,1743235654689,-204.0,0.0003745,30]
[356806640,1743235654755,-1000.0,0.00037712,60]
[356806641,1743235654924,-1000.0,0.0003826,60]
[356806642,1743235655002,-500.0,0.0003826,60]
[356806643,1743235655076,-500.0,0.0003826,60]
[356806644,1743235655149,-229.0,0.00038298,120]
[356806645,1743235655224,-516.581858,0.00038356,30]
[356806646,1743235655291,-540.08835774,0.00038356,30]
[356806647,1743235655357,-519.77476929,0.00038356,30]
[356806648,1743235655422,-507.22414072,0.00038356,30]
[356806649,1743235655486,-521.29777375,0.00038356,30]
[356806650,1743235655551,-516.16338408,0.00038356,30]
[356806651,1743235655616,-500.0,0.00038356,30]
[356806652,1743235655686,-310.62821763,0.00038356,30]
[356806653,1743235655751,-522.040272,0.00038356,30]
[356806654,1743235655820,-522.7578646,0.00038356,30]
[356806655,1743235655889,-500.0,0.00038356,30]
[356806656,1743235655955,-500.0,0.00038356,30]
[356806657,1743235656026,-514.82175719,0.00038356,30]
[356806658,1743235656097,-500.0,0.00038356,30]
[356806659,1743235656166,-500.0,0.00038356,30]
[356806660,1743235656233,-511.96224729,0.00038356,30]
[356806661,1743235656299,-500.0,0.00038356,30]
[356806662,1743235656365,-522.43914124,0.00038356,30]
[356806663,1743235656431,-500.0,0.00038356,30]
[356806664,1743235656504,-500.0,0.00038356,30]
[356806665,1743235656571,-500.0,0.00038356,30]
[356806666,1743235656640,-500.0,0.00038356,30]
[356806667,1743235656703,-508.59590735,0.00038356,30]
[356806668,1743235656767,-500.0,0.00038356,30]
[356806669,1743235656831,-500.0,0.00038356,30]
[356806670,1743235656895,-265.73994523,0.00038356,30]
[356806671,1743235656959,-500.0,0.00038356,30]
[356806672,1743235657022,-508.65575766,0.00038356,30]
[356806673,1743235657090,-511.63224226,0.00038356,30]
[356806674,1743235657156,-500.0,0.00038356,30]
[356806675,1743235657220,-513.3198599,0.00038356,30]
[356806676,1743235657283,-519.8045502,0.00038356,30]
[356806677,1743235657345,-529.70106513,0.00038356,30]
[356806678,1743235657413,-500.0,0.00038356,30]
[356806679,1743235657477,-500.0,0.00038356,30]
[356806680,1743235657542,-500.0,0.00038356,30]
[356806681,1743235657610,-515.36285393,0.00038356,30]
[356806682,1743235657678,-500.0,0.00038356,30]
[356806683,1743235657747,-500.0,0.00038356,30]
[356806684,1743235657816,-500.0,0.00038356,30]
[356806685,1743235657890,-500.0,0.00038356,30]
[356806686,1743235657958,-562.94264867,0.00038356,30]
[356806687,1743235658030,-526.12019342,0.00038356,30]
[356806688,1743235658098,-542.00960013,0.00038356,30]
[356806689,1743235658166,-500.0,0.00038356,30]
[356806690,1743235658237,-293.05176403,0.00038356,30]
[356806691,1743235658308,-500.0,0.00038356,30]
[356806692,1743235658379,-500.0,0.00038356,30]
[356806693,1743235658448,-500.0,0.00038356,30]
[356806694,1743235658516,-500.0,0.00038356,30]
[356806695,1743235658580,-500.0,0.00038356,30]
[356806696,1743235658651,-500.0,0.00038356,30]
[356806697,1743235658718,-500.0,0.00038356,30]
[356806698,1743235658789,-500.0,0.00038356,30]
[356806699,1743235658857,-596.23807373,0.00038356,30]
[356806700,1743235658926,-500.0,0.00038356,30]
[356806701,1743235658994,-400.08522602,0.00038356,30]
[356806702,1743235659060,-511.19766336,0.00038356,30]
[356806703,1743235659128,-504.02620259,0.00038356,30]
[356806704,1743235659194,-500.0,0.00038356,30]
[356806705,1743235659267,-500.0,0.00038356,30]
[356806706,1743235659333,-503.8641466,0.00038356,30]
[356806707,1743235659400,-500.0,0.00038356,30]
[356806708,1743235659464,-547.06684575,0.00038356,30]
[356806709,1743235659531,-510.20018185,0.00038356,30]
[356806710,1743235659600,-500.0,0.00038356,30]
[356806711,1743235659671,-500.0,0.00038356,30]
[356806712,1743235659735,-900.54,0.00038356,30]
[356806713,1743235659947,-500.0,0.00038356,30]
[356806714,1743235660015,-529.04054064,0.00038356,30]
[356806715,1743235660083,-500.0,0.00038356,30]
[356806716,1743235660150,-500.0,0.00038356,30]
[356806717,1743235660218,-500.0,0.00038356,30]
[356806718,1743235660285,-500.0,0.00038356,30]
[356806719,1743235660352,-476.41413657,0.00038356,30]
[356806720,1743235660418,-500.0,0.00038356,30]
[356806721,1743235660486,-152.19331229,0.00038356,30]
[356806722,1743235660552,-559.15,0.00038356,30]
[356806723,1743235660617,-500.0,0.00038356,30]
[356806724,1743235660682,-620.51,0.00038356,30]
[356806725,1743235660748,-500.0,0.00038356,30]
[356806726,1743235660811,-500.0,0.00038356,30]
[356806727,1743235660878,-500.0,0.00038356,30]
[356806728,1743235660939,-196.18710337,0.00038356,30]
[356806729,1743235661006,-855.45,0.00038356,30]
[356806730,1743235661070,-752.06,0.00038356,30]
[356806731,1743235661136,-500.0,0.00038356,30]
[356806732,1743235661201,-752.06,0.00038356,30]
[356806733,1743235661264,-752.06,0.00038356,30]
[356806734,1743235661330,-752.06,0.00038356,30]
[356806735,1743235661391,-752.06,0.00038356,30]
[356806736,1743235661457,-752.06,0.00038356,30]
[356806737,1743235661526,-752.06,0.00038356,30]
[356806738,1743235661589,-752.06,0.00038356,30]
[356806739,1743235661658,-752.06,0.00038356,30]
[356806740,1743235661724,-752.06,0.00038356,30]
[356806741,1743235661791,-752.06,0.00038356,30]
[356806742,1743235661859,-752.06,0.00038356,30]
[356806743,1743235661922,-752.06,0.00038356,30]
[356806744,1743235661991,-752.06,0.00038356,30]
[356806745,1743235662059,-752.06,0.00038356,30]
[356806746,1743235662127,-302.9473852,0.00038356,30]
[356806747,1743235662190,-500.0,0.00038356,30]
[356806748,1743235662274,-500.0,0.00038356,30]
[356806749,1743235662355,-206.77386764,0.00038356,30]
[356806750,1743235662437,-556.53872715,0.00038356,30]
[356806751,1743235662515,-500.0,0.00038356,30]
[356806752,1743235662598,-509.23022782,0.00038356,30]
[356806753,1743235662682,-509.53166958,0.00038356,30]
[356806754,1743235662763,-514.85389588,0.00038356,30]
[356806755,1743235662848,-528.50240924,0.00038356,30]
[356806756,1743235662932,-521.76452554,0.00038356,30]
[356806757,1743235663012,-500.0,0.00038356,30]
[356806758,1743235663091,-524.28350436,0.00038356,30]
[356806759,1743235663168,-516.42233014,0.00038356,30]
[356806760,1743235663244,-514.54450615,0.00038356,30]
[356806761,1743235663327,-500.0,0.00038356,30]
[356806762,1743235663400,-510.69452936,0.00038356,30]
[356806763,1743235663477,-500.0,0.00038356,30]
[356806764,1743235663555,-500.0,0.00038356,30]
[356806765,1743235663638,-500.0,0.00038356,30]
[356806766,1743235663716,-163.93163163,0.00038356,30]
[356806767,1743235663792,-527.64784892,0.00038356,30]
[356806768,1743235663866,-526.1501343,0.00038356,30]
[356806769,1743235663942,-500.0,0.00038356,30]
[356806770,1743235664019,-500.0,0.00038356,30]
[356806771,1743235664097,-534.70913486,0.00038356,30]
[356806772,1743235664176,-536.61079951,0.00038356,30]
[356806773,1743235664254,-509.52865963,0.00038356,30]
[356806774,1743235664327,-517.50719918,0.00038356,30]
[356806775,1743235664402,-500.0,0.00038356,30]
[356806776,1743235664475,-500.0,0.00038356,30]
[356806777,1743235664551,-500.0,0.00038356,30]
[356806778,1743235664625,-520.55988254,0.00038356,30]
[356806779,1743235664706,-413.15685278,0.00038356,30]
[356806780,1743235664779,-500.0,0.00038356,30]
[356806781,1743235664856,-500.0,0.00038356,30]
[356806782,1743235665098,-500.0,0.00038356,30]
[356806783,1743235665169,-518.04291034,0.00038356,30]
[356806784,1743235665236,-511.2711659,0.00038356,30]
[356806785,1743235665303,-514.95909513,0.00038356,30]
[356806786,1743235665371,-500.0,0.00038356,30]
[356806787,1743235665435,-500.0,0.00038356,30]
[356806788,1743235665502,-516.55879898,0.00038356,30]
[356806789,1743235665566,-500.0,0.00038356,30]
[356806790,1743235665634,-500.0,0.00038356,30]
[356806791,1743235665697,-1000.0,0.00038356,30]
[356806792,1743235665764,-500.0,0.00038356,30]
[356806793,1743235665829,-500.0,0.00038356,30]
[356806794,1743235665890,-500.0,0.00038356,30]
[356806795,1743235665955,-500.0,0.00038356,30]
[356806796,1743235666019,-500.0,0.00038356,30]
[356806797,1743235666087,-500.0,0.00038356,30]
[356806798,1743235666149,-500.0,0.00038356,30]
[356806799,1743235666217,-524.67076212,0.00038356,30]
[356806800,1743235666283,-347.22054,0.00038356,30]
[356806801,1743235666347,-171.36143414,0.00038356,30]
[356806802,1743235666411,-500.0,0.00038356,30]
[356806803,1743235666474,-563.49398202,0.00038356,30]
[356806804,1743235666536,-500.0,0.00038356,30]
[356806805,1743235666599,-186.154311,0.00038356,30]
[356806806,1743235666665,-500.0,0.00038356,30]
[356806807,1743235666727,-574.31646645,0.00038356,30]
[356806808,1743235666794,-500.0,0.00038356,30]
[356806809,1743235666859,-610.68319891,0.00038356,30]
[356806810,1743235666927,-168.569605,0.00038356,30]
[356806811,1743235666992,-563.46493626,0.00038356,30]
[356806812,1743235667061,-963.21,0.00038356,30]
[356806813,1743235667132,-1734.11,0.00038356,30]
[356806814,1743235667202,-511.38779405,0.00038356,30]
[356806815,1743235667271,-500.0,0.00038356,30]
[356806816,1743235667338,-515.31541014,0.00038356,30]
[356806817,1743235667410,-500.0,0.00038356,30]
[356806818,1743235667476,-256.07083361,0.00038356,30]
[356806819,1743235667543,-500.0,0.00038356,30]
[356806820,1743235667610,-500.0,0.00038356,30]
[356806821,1743235667680,-164.559732,0.00038356,30]
[356806822,1743235667748,-516.18891891,0.00038356,30]
[356806823,1743235667815,-500.0,0.00038356,30]
[356806824,1743235667883,-500.0,0.00038356,30]
[356806825,1743235667949,-955.85,0.00038356,30]
[356806826,1743235668015,-500.0,0.00038356,30]
[356806827,1743235668083,-532.36800845,0.00038356,30]
[356806828,1743235668157,-507.62852084,0.00038356,30]
[356806829,1743235668231,-500.0,0.00038356,30]
[356806830,1743235668306,-500.0,0.00038356,30]
[356806831,1743235668378,-500.0,0.00038356,30]
[356806832,1743235668457,-500.0,0.00038356,30]
[356806833,1743235668527,-539.16519596,0.00038356,30]
[356806834,1743235668602,-500.0,0.00038356,30]
[356806835,1743235668675,-505.44076416,0.00038356,30]
[356806836,1743235668750,-152.30393012,0.00038356,30]
[356806837,1743235668819,-500.0,0.00038356,30]
[356806838,1743235668891,-500.0,0.00038356,30]
[356806839,1743235668966,-500.0,0.00038356,30]
[356806840,1743235669042,-500.0,0.00038356,30]
[356806841,1743235669112,-538.62487401,0.00038356,30]
[356806842,1743235669188,-519.93886203,0.00038356,30]
[356806843,1743235669263,-579.27921202,0.00038356,30]
[356806844,1743235669340,-527.39319143,0.00038356,30]
[356806845,1743235669410,-500.0,0.00038356,30]
[356806846,1743235669484,-526.54914518,0.00038356,30]
[356806847,1743235669555,-500.0,0.00038356,30]
[356806848,1743235669629,-500.0,0.00038356,30]
[356806849,1743235669698,-511.85479556,0.00038356,30]
[356806850,1743235669772,-540.74846878,0.00038356,30]
[356806851,1743235669840,-500.0,0.00038356,30]
[356806852,1743235669912,-500.0,0.00038356,30]
[356806853,1743235669983,-520.08354755,0.00038356,30]
[356806854,1743235670057,-2452.46,0.00038356,30]
[356806855,1743235670129,-521.17182166,0.00038356,30]
[356806856,1743235670203,-561.43267708,0.00038356,30]
[356806857,1743235670274,-500.0,0.00038356,30]
[356806858,1743235670342,-500.0,0.00038356,30]
[356806859,1743235670409,-500.0,0.00038356,30]
[356806860,1743235670476,-500.0,0.00038356,30]
[356806861,1743235670541,-500.0,0.00038356,30]
[356806862,1743235670608,-519.39721942,0.00038356,30]
[356806863,1743235670676,-500.0,0.00038356,30]
[356806864,1743235670741,-500.0,0.00038356,30]
[356806865,1743235670809,-586.47024841,0.00038356,30]
[356806866,1743235670874,-500.0,0.00038356,30]
[356806867,1743235670938,-524.73518707,0.00038356,30]
[356806868,1743235671003,-519.22237602,0.00038356,30]
[356806869,1743235671219,-506.22571011,0.00038356,30]
[356806870,1743235671283,-500.0,0.00038356,30]
[356806871,1743235671346,-500.0,0.00038356,30]
[356806872,1743235671407,-500.0,0.00038356,30]
[356806873,1743235671472,-530.65595889,0.00038356,30]
[356806874,1743235671533,-516.5151578,0.00038356,30]
[356806875,1743235671599,-500.0,0.00038356,30]
[356806876,1743235671661,-383.01566603,0.00038356,30]
[356806877,1743235671728,-503.70688979,0.00038356,30]
[356806878,1743235671789,-500.0,0.00038356,30]
[356806879,1743235671853,-500.0,0.00038356,30]
[356806880,1743235671914,-500.0,0.00038356,30]
[356806881,1743235671981,-581.92007895,0.00038356,30]
[356806882,1743235672044,-500.0,0.00038356,30]
[356806883,1743235672109,-500.0,0.00038356,30]
[356806884,1743235672174,-556.50427682,0.00038356,30]
[356806885,1743235672235,-568.38244422,0.00038356,30]
[356806886,1743235672299,-500.0,0.00038356,30]
[356806887,1743235672361,-510.43924748,0.00038356,30]
[356806888,1743235672439,-509.89144535,0.00038356,30]
[356806889,1743235672500,-521.4180785,0.00038356,30]
[356806890,1743235672565,-500.0,0.00038356,30]
[356806891,1743235672626,-500.0,0.00038356,30]
[356806892,1743235672692,-500.0,0.00038356,30]
[356806893,1743235672753,-509.56737298,0.00038356,30]
[356806894,1743235672819,-500.0,0.00038356,30]
[356806895,1743235672879,-533.92464097,0.00038356,30]
[356806896,1743235672944,-500.0,0.00038356,30]
[356806897,1743235673007,-471.7593438,0.00038356,30]
[356806898,1743235673077,-502.3972437,0.00038356,30]
[356806899,1743235673142,-500.0,0.00038356,30]
[356806900,1743235673211,-580.34306031,0.00038356,30]
[356806901,1743235673279,-500.0,0.00038356,30]
[356806902,1743235673345,-500.0,0.00038356,30]
[356806903,1743235673407,-558.05650472,0.00038356,30]
[356806904,1743235673473,-500.0,0.00038356,30]
[356806905,1743235673534,-570.62473868,0.00038356,30]
[356806906,1743235673603,-500.0,0.00038356,30]
[356806907,1743235673668,-500.0,0.00038356,30]
[356806908,1743235673738,-544.12014197,0.00038356,30]
[356806909,1743235673807,-500.0,0.00038356,30]
[356806910,1743235673877,-516.28836493,0.00038356,30]
[356806911,1743235673946,-500.0,0.00038356,30]
[356806912,1743235674013,-500.0,0.00038356,30]
[356806913,1743235674083,-561.16984533,0.00038356,30]
[356806914,1743235674156,-571.30594457,0.00038356,30]
[356806915,1743235674228,-569.69898339,0.00038356,30]
[356806916,1743235674295,-500.0,0.00038356,30]